Cogmind - Beta 10.2 @@@ ROGUE MODE // 2022.03.01 @ 02:56:53 Player: woegarden Result: Self-destructed Performance ------------- Evolutions (1) 500 Regions Visited (3) 600 Robots Destroyed (9) 45 Value Destroyed (236) 236 Prototype IDs (0) 0 Alien Tech Used (0) 0 Bonus (200) 200 TOTAL SCORE: 1581 Bonus ------- Pacifist 200 Cogmind --------- Core Integrity 31/400 Matter 265/300 Energy 104/265 System Corruption 0% Temperature Cool (0) Movement Core (400) Ox7 Location -9/Materials Parts ------- > --- POWER (1) -------- Improved Ion Engine > --- PROPULSION (3) --- (None) > --- UTILITY (3) ------ Medium Storage Unit Medium Storage Unit > --- WEAPON (2) ------- (None) > --- INVENTORY (12) --- Ion Engine Compact Wheel Peak State ------------ > --- POWER ------------ Light Ion Engine > --- PROPULSION ------- Aluminum Leg Aluminum Leg Compact Wheel > --- UTILITY ---------- Cooling System Medium Storage Unit Medium Storage Unit > --- WEAPON ----------- Assault Rifle Light Assault Rifle > --- INVENTORY -------- Ion Engine Light Treads Light Treads Medium Laser Grenade Launcher [Rating: 10] Favorites ----------- Power Light Ion Engine Engine Light Ion Engine Propulsion Aluminum Leg Treads Light Treads Leg Aluminum Leg Wheel Compact Wheel Utility Medium Storage Unit Device Cooling System Storage Medium Storage Unit Weapon Light Assault Rifle Energy Gun Medium Laser Ballistic Gun Light Assault Rifle Launcher Grenade Launcher Build | -11 -10 -10 -9 ------- Run | Scr Mat Min Mat Slots Evolved 2 | . . . 2 Power . | . . . . Propulsion 1 | . . . 1 Utility 1 | . . . 1 Weapon . | . . . . Parts Attached 9 | . 2 1 6 Power 1 | . . . 1 Engine 1 | . . . 1 Core . | . . . . Reactor . | . . . . Propulsion 3 | . 1 . 2 Treads 1 | . . . 1 Leg 1 | . . . 1 Wheel 1 | . 1 . . Hover . | . . . . Flight . | . . . . Utility 3 | . 1 1 1 Device 1 | . . . 1 Storage 2 | . 1 1 . Processor . | . . . . Hackware . | . . . . Protection . | . . . . Artifact . | . . . . Weapon 2 | . . . 2 Energy Gun 1 | . . . 1 Energy Cannon . | . . . . Ballistic Gun . | . . . . Ballistic Cannon . | . . . . Launcher 1 | . . . 1 Special Weapon . | . . . . Impact Weapon . | . . . . Slashing Weapon . | . . . . Piercing Weapon . | . . . . Special Melee Weapon . | . . . . Unidentified Prototypes . | . . . . Parts Lost 9 | . . . 9 Power 1 | . . . 1 Propulsion 3 | . . . 3 Utility 1 | . . . 1 Weapon 4 | . . . 4 Highest Loss Streak 6 | . . . 6 Average Slot Usage (%) 85 | . 85 93 81 Engine 10 | . 14 14 6 Treads 3 | . . . 7 Leg 15 | . 16 14 16 Wheel 7 | . 11 14 1 Device 3 | . . . 7 Storage 19 | . 14 21 22 Ballistic Gun 22 | . 28 28 17 Naked Turns . | . . . . Heaviest Build 24 | 10 14 22 24 Greatest Support 20 | 20 20 10 20 Greatest Overweight (x) 5 | . 1 2 5 Average Overweight (x) 1 | . . 1 1 Largest Inventory Capacity 12 | . 10 12 12 Average Capacity 10 | . 7 10 12 Most Carried 7 | . 6 6 7 Average Carried 5 | . 5 6 4 Final Capacity 12 | 6 8 12 12 Final Carried 6 | 6 6 6 2 Class Distribution -------------------- 100% | Mutant Dominant Class ---------------- Mutant | -10/Materials Mutant | -10/Mines Mutant | -9/Materials Resources | -11 -10 -10 -9 ----------- Run | Scr Mat Min Mat Matter Collected 221 | 200 . 21 . Remotely . | . . . . Salvage Created 272 | . . . 272 Parts 17 | . . . 17 Haulers Intercepted . | . . . . Recyclers Shooed . | . . . . Parts Field Recycled . | . . . . Retrieved Matter . | . . . . Parts Self-Destructed . | . . . . Prevented . | . . . . Kills | -11 -10 -10 -9 ------- Run | Scr Mat Min Mat Combat Hostiles Destroyed 8 | . . . 8 Guns 4 | . . . 4 AOE 4 | . . . 4 Classes Destroyed 4 | . . . 4 Worker 1 | . . . 1 Swarmer 3 | . . . 3 Grunt 3 | . . . 3 Sentry 2 | . . . 2 Best Kill Streak 9 | . . . 9 Combat Bots Only 8 | . . . 8 Max Kills in Single Turn 3 | . . . 3 Gunslinging . | . . . . Exploded 3 | . . . 3 Melee . | . . . . Uniques/NPCs Destroyed . | . . . . Combat | -11 -10 -10 -9 -------- Run | Scr Mat Min Mat Damage Taken 1310 | . 165 . 1145 Core 407 | . 38 . 369 Absorbed by Shields . | . . . . Core Remaining (%) 92 | 100 . 84 . Volleys Fired 21 | . 1 . 20 Largest 2 | . 2 . 1 Hottest 50 | . 40 . 50 Shots Fired 22 | . 2 . 20 Gun 20 | . 2 . 18 Cannon . | . . . . Launcher 2 | . . . 2 Special . | . . . . Kinetic 2 | . 2 . . Thermal 18 | . . . 18 Explosive 2 | . . . 2 Electromagnetic . | . . . . Robot Hit Streak 12 | . 1 . 12 Robot Miss Streak 1 | . 1 . 1 Penetration Max . | . . . . Secondary Targets . | . . . . Shots Hit Robots 19 | . 1 . 18 Core Hits 19 | . . . 19 Critical Hits . | . . . . Critical Kills . | . . . . Critical Parts Destroyed . | . . . . Melee Attacks . | . . . . Impact . | . . . . Slashing . | . . . . Piercing . | . . . . Sneak Attacks . | . . . . Combat Hostiles . | . . . . Follow-up Attacks . | . . . . Damage Inflicted 415 | . 9 . 406 Guns 210 | . 9 . 201 Cannons . | . . . . Explosions 179 | . . . 179 Melee . | . . . . Ramming 26 | . . . 26 Kinetic 9 | . 9 . . Thermal 201 | . . . 201 Explosive 179 | . . . 179 Electromagnetic . | . . . . Impact . | . . . . Slashing . | . . . . Piercing . | . . . . Highest Corruption . | . . . . Average Corruption . | . . . . Corruption Purged . | . . . . Overload Shots . | . . . . Overflow Damage 9 | . . . 9 Projectiles . | . . . . Explosions 9 | . . . 9 Melee . | . . . . Knockbacks . | . . . . Impact . | . . . . Kinetic . | . . . . Secondary . | . . . . Self-Inflicted Damage 73 | . . . 73 Shots 2 | . . . 2 Rammed 9 | . . . 9 Targets Rammed 9 | . . . 9 Kicked . | . . . . Crushed . | . . . . Highest Temperature 21 | . . . 21 Average Temperature 9 | . . . 9 Received Heat Transfer 168 | . . . 168 Siege Activations . | . . . . Robots Corrupted . | . . . . Combat Hostiles . | . . . . Parts Fried . | . . . . Impact Corruptions . | . . . . Robots Melted . | . . . . Combat Hostiles . | . . . . Parts Melted 2 | . . . 2 Heat Transferred 592 | . . . 592 Parts Sabotaged . | . . . . Parts Stolen . | . . . . Parts Stripped . | . . . . Power Chain Reactions . | . . . . Missiles Intercepted . | . . . . Alert | -11 -10 -10 -9 ------- Run | Scr Mat Min Mat Peak Influence 185 | . 60 23 185 Initial 23 | . . 23 8 Average 21 | . 10 23 27 Maximum Alert Level . | . . . . Low Security (%) 100 | . 100 100 100 Level 1 . | . . . . Level 2 . | . . . . Level 3 . | . . . . Level 4 . | . . . . Level 5 . | . . . . High Security . | . . . . Max Security . | . . . . Squads Dispatched . | . . . . Investigation . | . . . . Extermination . | . . . . Reinforcement . | . . . . Assault . | . . . . Garrison . | . . . . Intercept . | . . . . Construction Impeded . | . . . . Haulers Reinforced . | . . . . Stealth | -11 -10 -10 -9 --------- Run | Scr Mat Min Mat Distress Signals . | . . . . Communications Jammed . | . . . . Distress Signals . | . . . . Times Spotted 16 | . 5 . 11 Peak Tracking Total 8 | . 4 . 8 Tactical Retreats 3 | . 1 . 2 Traps | -11 -10 -10 -9 ------- Run | Scr Mat Min Mat Traps Triggered . | . . . . Indirectly . | . . . . Trap Hack Attempts . | . . . . Triggered . | . . . . Disarmed . | . . . . Reprogrammed . | . . . . Reused . | . . . . Traps Extracted . | . . . . Installed . | . . . . Triggered . | . . . . Machines | -11 -10 -10 -9 ---------- Run | Scr Mat Min Mat Machines Disabled . | . . . . Max in Single Turn . | . . . . Machines Sabotaged . | . . . . Garrisons Compromised . | . . . . Overloaded Fab Kills . | . . . . Fab Network Shutdowns . | . . . . Hacking | -11 -10 -10 -9 --------- Run | Scr Mat Min Mat Machines Accessed . | . . . . Terminals . | . . . . Fabricators . | . . . . Repair Stations . | . . . . Recycling Units . | . . . . Scanalyzers . | . . . . Garrison Access . | . . . . Total Hacks . | . . . . Successful . | . . . . Failed . | . . . . Catastrophic . | . . . . Database Lockouts . | . . . . Manual . | . . . . Terminals . | . . . . Fabricators . | . . . . Repair Stations . | . . . . Recycling Units . | . . . . Scanalyzers . | . . . . Garrison Access . | . . . . Terminal Hacks . | . . . . Fabricator Hacks . | . . . . Repair Station Hacks . | . . . . Recycling Unit Hacks . | . . . . Scanalyzer . | . . . . Garrison Access Hacks . | . . . . Unauthorized Hacks . | . . . . Terminals . | . . . . Fabricators . | . . . . Repair Stations . | . . . . Recycling Units . | . . . . Scanalyzers . | . . . . Garrison Access . | . . . . Data Cores Recovered . | . . . . Used . | . . . . Hacking Detections . | . . . . Full Trace Events . | . . . . Feedback Events . | . . . . Feedback Blocked . | . . . . Robot Schematics Acquired . | . . . . Robots Built . | . . . . Matter . | . . . . Time . | . . . . Total Robot Build Rating . | . . . . Part Schematics Acquired . | . . . . Parts Built . | . . . . Matter . | . . . . Time . | . . . . Total Part Build Rating . | . . . . Parts Repaired . | . . . . Time . | . . . . Parts Recycled . | . . . . Recycled Matter . | . . . . Retrieved Matter . | . . . . Retrieved Components . | . . . . Parts Scanalyzed . | . . . . Part Schematics Acquired . | . . . . Parts Damaged . | . . . . Bothacking | -11 -10 -10 -9 ------------ Run | Scr Mat Min Mat Used RIF Installer . | . . . . Robots Hacked . | . . . . Non-combat . | . . . . Combat . | . . . . Robot Hacks Applied . | . . . . Relay Couplers Released . | . . . . Robots Rewired . | . . . . Allies Hacked . | . . . . Hacks Repelled . | . . . . Allies | -11 -10 -10 -9 -------- Run | Scr Mat Min Mat Total Allies . | . . . . Largest Group . | . . . . Highest-Rated Group . | . . . . Highest-Rated Ally . | . . . . Total Orders . | . . . . Ally Attacks . | . . . . Total Damage . | . . . . Kills . | . . . . Allies Corrupted . | . . . . Allies Melted . | . . . . Intel | -11 -10 -10 -9 ------- Run | Scr Mat Min Mat Robot Analysis Total . | . . . . Derelict Logs Recovered . | . . . . Drone Launches . | . . . . Drone Recoveries . | . . . . Exploration | -11 -10 -10 -9 ------------- Run | Scr Mat Min Mat Turns Passed 659 | . 184 161 314 Spaces Moved 361 | 1 128 97 135 Core 3 | . . . 3 Treads 109 | . . . 109 Legs 249 | 1 128 97 23 Wheels . | . . . . Hover . | . . . . Flight . | . . . . Fastest Speed 120 | 120 120 150 160 Average Speed 161 | 120 138 165 182 Slowest Speed 300 | 120 150 180 300 Overloaded Moves . | . . . . Propulsion Burnouts . | . . . . Robots Hopped . | . . . . Cave-ins Triggered . | . . . . Exploration Rate (%) 18 | 2 30 26 17 Regions Visited 3 Branch Regions 1 Pre-discovered Areas . | . . . . Known Exits Taken . | . . . . Unknown Exits Taken 3 | 1 1 1 . Scrap Searched 1 | . . 1 . Spaces Dug . | . . . . Terrain Destroyed 16 | . . . 16 Melee . | . . . . Projectile . | . . . . AOE 16 | . . . 16 Terrain Rammed . | . . . . Walls Destroyed . | . . . . Machines Disabled . | . . . . Actions | -11 -10 -10 -9 --------- Run | Scr Mat Min Mat Total 405 | . 133 97 175 Wait 3 | . . . 3 Move 358 | . 127 96 135 Hop . | . . . . Pick Up 2 | . 1 . 1 Fast Attach 3 | . 1 1 1 Attach 4 | . . . 4 Detach . | . . . . Swap 2 | . 1 . 1 Drop 3 | . 2 . 1 Fire 21 | . 1 . 20 Melee . | . . . . Ram . | . . . . Kick . | . . . . Crush 9 | . . . 9 Escape Stasis . | . . . . Rewire . | . . . . Trap . | . . . . Miscellaneous . | . . . . Route ------- -11/Scrapyard -10/Materials -10/Mines -9/Materials History --------- Turn | Location | Event 1 | -11/Scrapyard | Discovered new exit (range 0) 1 | -11/Scrapyard | Entered Materials 80 | -10/Materials | Discovered new exit (range 7) 185 | -10/Materials | Entered Mines 313 | -10/Mines | Build established: Mutant 314 | -10/Mines | Discovered new exit (range 6) 346 | -10/Mines | Entered Materials 346 | -9/Materials | Evolved 2 slots: Propulsion x1, Utility x1 613 | -9/Materials | Core integrity fell below 50% 645 | -9/Materials | Core integrity fell below 20% 646 | -9/Materials | Lost 6 parts (3n1u2w) 660 | -9/Materials | Self-destructed Last Messages --------------- 00612_ Cooling System destroyed. 00615_ Aluminum Leg destroyed. 00619_ G-34 Mercenary destroyed. 00632_ R-06 Scavenger collects Lgt. Assault Rifle. 00635_ G-47 Trooper heat damages Aluminum Leg. 00635_ R-06 Scavenger collects Ion Engine. 00635_ G-47 Trooper overheating. 00638_ R-06 Scavenger collects Flight Unit. 00639_ G-47 Trooper heat short circuits Lgt. Nuclear Core. 00639_ Imp. Heat Sink melted. 00639_ Particle Gun melted. 00639_ G-47 Trooper destroyed. 00647_ Med. Laser destroyed. 00648_ Y-45 Defender destroyed. 00648_ S-10 Pest destroyed. 00650_ Y-45 Defender destroyed. 00650_ K-01 Serf destroyed. 00650_ Grenade Launcher destroyed. 00650_ Destroyed Grenade Launcher. 00658_ Acquired Imp. Ion Engine. Map ----- +----------------------------------------------------+ | | | | | | | | | | | | | | | | | | | | | | | | | | | | | ????????????????????????####?????????????????????? | | ???????????????????????# #????????????????????? | | ???????????????????????# #?? ????????????????? | | ???????????????????????# #?"""""??????????????? | | ???????????????????????# #?""""" ""???????????? | | ???????????????????????# # """"" "????????????? | | ??????????????????????## # ??????????????? | | ??????????????????????# ?????????????????? | | ??????????????????????# =! ##??????????????????? | | ??????????????????????# =% = #??????##??????????? | | ??????????????????????## %=! ########T#### ????? | | ??????????????????????+=%@%![ ???? | | ??????????????????????# =!= ???? | | ??????????????????????# #" [[[ ##????????? | | ??????????????????????####" [[ #?????????? | | ?????????????????????????#" [[ #?????????? | | ?????????????????????????#T #?????????? | | ?????????????????????????#" #?????????? | | ?????????????????????????#" ####?????????? | | ?????????????????????????#" """ #????????????? | | ???????????????? ??????# """ #????????????? | | ??????????????? ??????# """ #????????????? | | ???????????????# ####### #????????????? | | ???????????????# +????????????? | | ???????????????# ##########+####### ???????????? | | ???????????????# #????# """ """ #?? ???????????? | | ???????????????# #??? # """ """ #??? ??????????? | | ???????????????# #??? # """ """ #??????????????? | | ???????????????# #?? # #??????????????? | | ?????#????###### #? ?# #??????????????? | | ????? ???? #? ??# #??????????????? | | ????? ????? # ??# #??????????????? | | ?????? ?????? # ???# ! #??????????????? | | ??????# ???????# +????######/####??????????????? | | ??????# ??????# ########### #???#######???????? | | ??????# ??????# #???# #???????? | +----------------------------------------------------+ Best States ------------- Heat Dissipation 50 Energy Generation 12 Energy Capacity 265 Matter Stores 300 Matter Capacity 300 Sight Range 16 Terrain Scan Density 10 Evasion (%) 40 Recoil Reduction 1 Item Schematics ----------------- None Robot Schematics ------------------ None Fabricated ------------ Nothing Alien Tech Used ----------------- None Achievements -------------- None Challenges ------------ None Game ------ Seed UtilityResetCharger Manual? 0 Play Time 00:09:15 Cumulative 64.1 hours Start 2022.03.01 @ 02:50:14 End 2022.03.01 @ 02:56:53 Sessions 1 Manual Loads 0 Difficulty Rogue Special Mode None Game No. 80 Rogue 34 Adventurer 45 Explorer 1 Win Type - Total 0 Types 0/0/0/0/0/0/0/0/0 Lore% 23 Gallery% 44 Achievement% 28 Wizard Run 0 Options --------- ASCII 0 Keyboard 0 Movement Mouse Keybinds 0 Fullscreen 2 Font 16/Proggy Map View 76x50 Tactical HUD 1 Map Filters NONE Filters LOW_CONTRAST(13,24,33)|BRIGHTNESS(90)|SATURATION(87) Steam 1 RUN: 88fdc18f-9290-49de-9f36-f789334efb0f